[Event "European Online Club-ch-G 2021"]
[Site "Online"]
[Date "2021.03.27"]
[Round "8.20"]
[White "Sukandar, Irine Kharisma"]
[Black "Haring, Filip"]
[Result "0-1"]
[ECO "B15"]
[WhiteElo "2413"]
[BlackElo "2376"]
[Annotator "NA"]
[PlyCount "40"]
[EventDate "2021.03.27"]
[EventType "team-tourn"]
[EventCountry "NET"]
[SourceTitle "playchess.com"]
[Source "ChessBase"]
[SourceQuality "1"]
[TimeControl "900+5"]

1. e4 {[%emt 0:00:00]} c6 {[%emt 0:00:02]} 2. d4 {[%emt 0:00:03]} d5 {[%emt 0:00:01]} 3. Nc3 {[%emt 0:00:05]} dxe4 {[%emt 0:00:02]} 4. Nxe4 {[%emt 0:00:02]} Nf6 {[%emt 0:00:01]} 5. Nxf6+ {[%emt 0:00:07]} exf6 {[%emt 0:00:02]} 6. c3 {[%emt 0:00:04]} Bd6 {[%emt 0:00:01]} 7. Bd3 {[%emt 0:00:02]} O-O {[%emt 0:00:02]} 8. Qc2 {[%emt 0:00:05]} Re8+ {[%emt 0:00:02]} 9. Ne2 {[%emt 0:00:02]} h5 {[%emt 0:00:02]} 10. O-O {[%emt 0:00:08]} h4 {[%emt 0:00:02]} 11. Be3 {[%emt 0:00:33]} Nd7 {[%emt 0:01:03]} 12. Rae1 {[%emt 0:01:00]} h3 {[%emt 0:03:04]} 13. g3 {[%emt 0:00:09]} Nf8 {[%emt 0:00:19]} 14. Nf4 {[%emt 0:01:53]} Bxf4 {[%emt 0:01:46]} 15. Bxf4 {[%emt 0:00:07]} Be6 {[%emt 0:01:03]} 16. a3 {[%emt 0:01:11]} Bd5 {[%emt 0:02:04]} 17. Bd2 {[%emt 0:01:12]} Qd7 {[%emt 0:01:47]} 18. Bf5 {[%emt 0:00:24]} Be6 {[%emt 0:00:07]} 19. Bxe6 {[%emt 0:00:54]} Rxe6 {[%emt 0:01:21]} 20. Qf5 {[%emt 0:00:23]} Rxe1 {[%emt 0:00:07]} 0-1

[Event "European Online Club-ch-G 2021"]
[Site "Online"]
[Date "2021.03.27"]
[Round "9.1"]
[White "Harvey, Marcus R"]
[Black "Altun, Arda"]
[Result "1/2-1/2"]
[ECO "D18"]
[WhiteElo "2440"]
[BlackElo "2074"]
[Annotator "NA"]
[PlyCount "30"]
[EventDate "2021.03.27"]
[EventType "team-tourn"]
[EventCountry "NET"]
[SourceTitle "playchess.com"]
[Source "ChessBase"]
[SourceQuality "1"]
[TimeControl "900+5"]

1. d4 {[%emt 0:00:00]} d5 {[%emt 0:00:06]} 2. Nf3 {[%emt 0:00:03]} Nf6 {[%emt 0:00:10]} 3. c4 {[%emt 0:00:02]} c6 {[%emt 0:00:03]} 4. Nc3 {[%emt 0:00:01]} dxc4 {[%emt 0:00:02]} 5. a4 {[%emt 0:00:02]} Bf5 {[%emt 0:00:04]} 6. e3 {[%emt 0:00:15]} e6 {[%emt 0:00:03]} 7. Bxc4 {[%emt 0:00:02]} Bb4 {[%emt 0:00:03]} 8. O-O {[%emt 0:00:06]} Nbd7 {[%emt 0:00:03]} 9. Qb3 {[%emt 0:00:24]} a5 {[%emt 0:00:21]} 10. Na2 {[%emt 0:00:52]} Be7 {[%emt 0:00:26]} 11. Qxb7 {[%emt 0:00:12]} Rb8 {[%emt 0:00:05]} 12. Qa6 {[%emt 0:01:08]} Ra8 {[%emt 0:00:44]} 13. Qb7 {[%emt 0:00:03]} Rb8 {[%emt 0:00:01]} 14. Qa6 {[%emt 0:00:03]} Ra8 {[%emt 0:00:02]} 15. Qb7 {[%emt 0:00:01]} Rb8 {[%emt 0:00:01]} 1/2-1/2

[Event "European Online Club-ch-G 2021"]
[Site "Online"]
[Date "2021.03.27"]
[Round "9.2"]
[White "Danaci, Ege"]
[Black "Greet, Andrew N"]
[Result "0-1"]
[ECO "C40"]
[WhiteElo "1996"]
[BlackElo "2417"]
[Annotator "NA"]
[PlyCount "35"]
[EventDate "2021.03.27"]
[EventType "team-tourn"]
[EventCountry "NET"]
[SourceTitle "playchess.com"]
[Source "ChessBase"]
[SourceQuality "1"]
[TimeControl "900+5"]

1. e4 {[%emt 0:00:00]} e5 {[%emt 0:00:12]} 2. Nf3 {[%emt 0:00:08]} d5 {[%emt 0:00:03]} 3. Nxe5 {[%emt 0:00:37]} Bd6 {[%emt 0:00:02]} 4. d4 {[%emt 0:00:07]} dxe4 {[%emt 0:00:03]} 5. Nc4 {[%emt 0:00:37]} Nf6 {[%emt 0:00:04]} 6. Be2 {[%emt 0:00:02]} Nc6 {[%emt 0:00:02]} 7. O-O {[%emt 0:00:06]} Nxd4 {[%emt 0:00:06]} 8. Be3 {[%emt 0:02:16]} Nxe2+ {[%emt 0:01:41]} 9. Qxe2 {[%emt 0:00:02]} Bg4 {[%emt 0:00:04]} 10. Qd2 {[%emt 0:00:20]} Be7 {[%emt 0:00:12]} 11. Nc3 {[%emt 0:00:08]} Qxd2 {[%emt 0:00:06]} 12. Nxd2 {[%emt 0:00:03]} Bf5 {[%emt 0:00:30]} 13. Rfe1 {[%emt 0:00:17]} O-O-O {[%emt 0:00:09]} 14. Bg5 {[%emt 0:00:50]} Rhe8 {[%emt 0:00:09]} 15. Ndxe4 {[%emt 0:00:34]} Nxe4 {[%emt 0:00:12]} 16. Nxe4 {[%emt 0:00:03]} Bxe4 {[%emt 0:00:10]} 17. Bxe7 {[%emt 0:00:03]} Rxe7 {[%emt 0:00:03]} 18. f4 {[%emt 0:00:01]} 0-1

[Event "European Online Club-ch-G 2021"]
[Site "Online"]
[Date "2021.03.27"]
[Round "9.3"]
[White "Derakhshani, Borna"]
[Black "Yildirim, Ibrahim Halil"]
[Result "0-1"]
[ECO "D02"]
[WhiteElo "2373"]
[BlackElo "1783"]
[Annotator "NA"]
[PlyCount "106"]
[EventDate "2021.03.27"]
[EventType "team-tourn"]
[EventCountry "NET"]
[SourceTitle "playchess.com"]
[Source "ChessBase"]
[SourceQuality "1"]
[TimeControl "900+5"]

1. d4 {[%emt 0:00:00]} d5 {[%emt 0:00:02]} 2. Bf4 {[%emt 0:00:03]} Nf6 {[%emt 0:00:01]} 3. Nf3 {[%emt 0:00:01]} c5 {[%emt 0:00:02]} 4. e3 {[%emt 0:00:01]} Nc6 {[%emt 0:00:01]} 5. c3 {[%emt 0:00:01]} Qb6 {[%emt 0:00:02]} 6. Qb3 {[%emt 0:00:01]} c4 {[%emt 0:00:01]} 7. Qc2 {[%emt 0:00:01]} Bf5 {[%emt 0:00:01]} 8. Qc1 {[%emt 0:00:01]} h6 {[%emt 0:00:01]} 9. h3 {[%emt 0:00:02]} e6 {[%emt 0:00:01]} 10. Nbd2 {[%emt 0:00:01]} Be7 {[%emt 0:00:08]} 11. Be2 {[%emt 0:00:02]} O-O {[%emt 0:00:04]} 12. O-O {[%emt 0:00:01]} Rfc8 {[%emt 0:00:05]} 13. Bd1 {[%emt 0:00:06]} Qd8 {[%emt 0:00:07]} 14. Bc2 {[%emt 0:00:02]} Bxc2 {[%emt 0:00:48]} 15. Qxc2 {[%emt 0:00:02]} b5 {[%emt 0:00:01]} 16. Rfe1 {[%emt 0:00:09]} b4 {[%emt 0:00:12]} 17. Qa4 {[%emt 0:00:38]} Bd6 {[%emt 0:00:53]} 18. Bxd6 {[%emt 0:00:11]} Qxd6 {[%emt 0:00:01]} 19. e4 {[%emt 0:00:01]} Qf8 {[%emt 0:00:20]} 20. e5 {[%emt 0:00:15]} Nd7 {[%emt 0:00:08]} 21. Qc2 {[%emt 0:00:09]} a5 {[%emt 0:00:18]} 22. Nh4 {[%emt 0:00:16]} bxc3 {[%emt 0:00:21]} 23. bxc3 {[%emt 0:00:02]} Rcb8 {[%emt 0:00:08]} 24. f4 {[%emt 0:00:27]} Qa3 {[%emt 0:00:22]} 25. f5 {[%emt 0:00:07]} Qb2 {[%emt 0:00:25]} 26. Rac1 {[%emt 0:00:35]} Nxd4 {[%emt 0:01:17]} 27. Qd1 {[%emt 0:02:22]} Nxf5 {[%emt 0:02:26]} 28. Nxf5 {[%emt 0:00:05]} exf5 {[%emt 0:00:01]} 29. Nxc4 {[%emt 0:00:27]} dxc4 {[%emt 0:01:41]} 30. Qxd7 {[%emt 0:00:03]} Qb6+ {[%emt 0:00:25]} 31. Kh1 {[%emt 0:00:07]} Qe6 {[%emt 0:00:03]} 32. Qa4 {[%emt 0:00:14]} Rb2 {[%emt 0:00:34]} 33. Rcd1 {[%emt 0:00:08]} Rab8 {[%emt 0:01:34]} 34. Rd6 {[%emt 0:00:51]} Rb1 {[%emt 0:00:32]} 35. Rxe6 {[%emt 0:00:56]} Rxe1+ {[%emt 0:00:03]} 36. Kh2 {[%emt 0:00:01]} fxe6 {[%emt 0:00:02]} 37. Qxa5 {[%emt 0:00:08]} Rb2 {[%emt 0:01:47]} 38. a4 {[%emt 0:00:25]} Ree2 {[%emt 0:00:17]} 39. Qa8+ {[%emt 0:00:02]} Kh7 {[%emt 0:00:13]} 40. a5 {[%emt 0:00:01]} Rxe5 {[%emt 0:00:09]} 41. a6 {[%emt 0:00:02]} Ra5 {[%emt 0:01:22]} 42. Qc6 {[%emt 0:00:34]} Rba2 {[%emt 0:00:23]} 43. Qxe6 {[%emt 0:00:04]} Rxa6 {[%emt 0:00:01]} 44. Qxc4 {[%emt 0:00:24]} Ra1 {[%emt 0:00:31]} 45. Qd5 {[%emt 0:00:13]} R1a5 {[%emt 0:00:12]} 46. Qc4 {[%emt 0:00:17]} Rd6 {[%emt 0:00:15]} 47. Qb4 {[%emt 0:00:18]} Rad5 {[%emt 0:00:17]} 48. c4 {[%emt 0:00:07]} Rd4 {[%emt 0:00:07]} 49. Qb5 {[%emt 0:00:01]} Rf6 {[%emt 0:00:10]} 50. c5 {[%emt 0:00:14]} Rd5 {[%emt 0:00:04]} 51. Kg3 {[%emt 0:00:24]} f4+ {[%emt 0:00:04]} 52. Kf3 {[%emt 0:00:01]} Rff5 {[%emt 0:00:03]} 53. Qd3 {[%emt 0:00:39]} Rxd3+ {[%emt 0:00:03]} 0-1

[Event "European Online Club-ch-G 2021"]
[Site "Online"]
[Date "2021.03.27"]
[Round "9.5"]
[White "Persanyi, Barnabas"]
[Black "Gazik, Viktor"]
[Result "0-1"]
[ECO "A49"]
[WhiteElo "2364"]
[BlackElo "2542"]
[Annotator "ChessBase"]
[PlyCount "118"]
[EventDate "2021.03.27"]
[EventType "team-tourn"]
[EventCountry "NET"]
[SourceTitle "playchess.com"]
[Source "ChessBase"]
[SourceQuality "1"]
[TimeControl "900+5"]

1. Nf3 {[%emt 0:00:00]} Nf6 {[%emt 0:00:04]} 2. g3 {[%emt 0:00:02]} g6 {[%emt 0:00:01]} 3. b3 {[%emt 0:00:02]} d6 {[%emt 0:00:03]} 4. d4 {[%emt 0:00:09]} a5 {[%emt 0:00:01]} 5. Bb2 {[%emt 0:00:08]} Bg7 {[%emt 0:00:01]} 6. Bg2 {[%emt 0:00:04]} O-O {[%emt 0:00:01]} 7. O-O {[%emt 0:00:05]} c6 {[%emt 0:00:01]} 8. a4 {[%emt 0:00:51]} Qc7 {[%emt 0:00:04]} 9. Nbd2 {[%emt 0:00:06]} Na6 {[%emt 0:00:08]} 10. e4 {[%emt 0:00:17]} Re8 {[%emt 0:00:10]} 11. Qe2 {[%emt 0:00:33]} Bg4 {[%emt 0:00:30]} 12. h3 {[%emt 0:00:18]} Bxf3 {[%emt 0:00:02]} 13. Bxf3 {[%emt 0:00:03]} e5 {[%emt 0:00:09]} 14. dxe5 {[%emt 0:00:24]} dxe5 {[%emt 0:00:00]} 15. Rfd1 {[%emt 0:00:42]} Nb4 {[%emt 0:00:30]} 16. Nc4 {[%emt 0:00:27]} Bf8 {[%emt 0:00:03]} 17. Kg2 {[%emt 0:00:37]} Bc5 {[%emt 0:01:08]} 18. Rd2 {[%emt 0:00:27]} Na6 {[%emt 0:00:48]} 19. h4 {[%emt 0:00:55]} h5 {[%emt 0:00:14]} 20. Rad1 {[%emt 0:01:13]} Bb4 {[%emt 0:00:23]} 21. Rd3 {[%emt 0:01:30]} Nc5 {[%emt 0:02:07]} 22. Re3 {[%emt 0:00:07]} Ncd7 {[%emt 0:00:34]} 23. Red3 {[%emt 0:00:34]} Nb6 {[%emt 0:00:56]} 24. Nxb6 {[%emt 0:00:17]} Qxb6 {[%emt 0:00:00]} 25. Qe3 {[%emt 0:00:10]} Qc7 {[%emt 0:00:18]} 26. Qg5 {[%emt 0:00:26]} Qe7 {[%emt 0:00:11]} 27. Qe3 {[%emt 0:00:48]} Bc5 {[%emt 0:00:11]} 28. Qe2 {[%emt 0:00:14]} Kg7 {[%emt 0:00:34]} 29. Qd2 {[%emt 0:00:27]} Kg8 {[%emt 0:00:19]} 30. Qc1 {[%emt 0:00:05]} b6 {[%emt 0:00:34]} 31. Qh6 {[%emt 0:00:26]} Qe6 {[%emt 0:01:03]} 32. Bc3 {[%emt 0:00:22]} b5 {[%emt 0:00:10]} 33. Qd2 {[%emt 0:00:18]} bxa4 {[%emt 0:00:12]} 34. Bxa5 {[%emt 0:00:33]} axb3 {[%emt 0:00:22]} 35. Rxb3 {[%emt 0:00:21]} Bd4 {[%emt 0:00:16]} 36. Bc3 {[%emt 0:00:17]} c5 {[%emt 0:00:42]} 37. Bxd4 {[%emt 0:00:06]} cxd4 {[%emt 0:00:04]} 38. Rdb1 {[%emt 0:00:12]} Rec8 {[%emt 0:00:32]} 39. c3 {[%emt 0:00:30]} Ra4 {[%emt 0:00:24]} 40. Rb8 {[%emt 0:00:26]} Rxb8 {[%emt 0:00:26]} 41. Rxb8+ {[%emt 0:00:02]} Kg7 {[%emt 0:00:01]} 42. cxd4 {[%emt 0:00:02]} Rxd4 {[%emt 0:00:01]} 43. Qc2 {[%emt 0:00:30]} Rc4 {[%emt 0:01:33]} 44. Qd3 {[%emt 0:00:24]} Rc8 {[%emt 0:00:02]} 45. Rxc8 {[%emt 0:00:11]} Qxc8 {[%emt 0:00:00]} 46. Bd1 {[%emt 0:00:19]} Qb7 {[%emt 0:00:06]} 47. f3 {[%emt 0:00:06]} Qb2+ {[%emt 0:00:07]} 48. Qe2 {[%emt 0:00:02]} Qc3 {[%emt 0:00:05]} 49. Qc2 {[%emt 0:00:15]} Qd4 {[%emt 0:00:05]} 50. Be2 {[%emt 0:00:06]} Nd7 {[%emt 0:00:21]} 51. Qd3 {[%emt 0:00:17]} Qb2 {[%emt 0:00:02]} 52. Kf1 {[%emt 0:00:20]} Nc5 {[%emt 0:00:03]} 53. Qd5 {[%emt 0:00:09]} Nb3 {[%emt 0:00:43]} 54. Bc4 {[%emt 0:00:07]} Nd2+ {[%emt 0:00:05]} 55. Ke1 {[%emt 0:00:05]} Qc1+ {[%emt 0:00:17]} 56. Ke2 {[%emt 0:00:02]} Nxc4 {[%emt 0:00:02]} 57. f4 {[%emt 0:00:08]} Qe3+ {[%emt 0:00:06]} 58. Kd1 {[%emt 0:00:07]} Qf3+ {[%emt 0:00:06]} 59. Kc1 {[%emt 0:00:02]} Qf1+ {[%emt 0:00:06]} 0-1

[Event "European Online Club-ch-G 2021"]
[Site "Online"]
[Date "2021.03.27"]
[Round "9.6"]
[White "Sahidi, Samir"]
[Black "Krstulovic, Alex"]
[Result "1-0"]
[ECO "A25"]
[WhiteElo "2407"]
[BlackElo "2387"]
[Annotator "NA"]
[PlyCount "155"]
[EventDate "2021.03.27"]
[EventType "team-tourn"]
[EventCountry "NET"]
[SourceTitle "playchess.com"]
[Source "ChessBase"]
[SourceQuality "1"]
[TimeControl "900+5"]

1. c4 {[%emt 0:00:00]} e5 {[%emt 0:00:04]} 2. Nc3 {[%emt 0:00:02]} Nc6 {[%emt 0:00:02]} 3. g3 {[%emt 0:00:03]} Bc5 {[%emt 0:00:02]} 4. Bg2 {[%emt 0:00:05]} a6 {[%emt 0:00:02]} 5. e3 {[%emt 0:00:07]} d6 {[%emt 0:00:02]} 6. Nge2 {[%emt 0:00:06]} Ba7 {[%emt 0:00:02]} 7. O-O {[%emt 0:00:07]} h5 {[%emt 0:00:02]} 8. h3 {[%emt 0:00:22]} h4 {[%emt 0:00:34]} 9. g4 {[%emt 0:00:04]} f5 {[%emt 0:00:01]} 10. f3 {[%emt 0:00:24]} Be6 {[%emt 0:00:39]} 11. b3 {[%emt 0:00:06]} Nge7 {[%emt 0:00:06]} 12. d4 {[%emt 0:00:05]} exd4 {[%emt 0:05:26]} 13. exd4 {[%emt 0:00:42]} Qd7 {[%emt 0:00:44]} 14. Kh1 {[%emt 0:00:33]} Bf7 {[%emt 0:00:16]} 15. Be3 {[%emt 0:00:56]} O-O {[%emt 0:00:26]} 16. Qd2 {[%emt 0:00:20]} Rae8 {[%emt 0:00:05]} 17. Rae1 {[%emt 0:00:09]} Ng6 {[%emt 0:00:12]} 18. Bg1 {[%emt 0:00:58]} Qc8 {[%emt 0:01:11]} 19. d5 {[%emt 0:02:32]} Bxg1 {[%emt 0:00:00]} 20. Rxg1 {[%emt 0:00:53]} fxg4 {[%emt 0:01:40]} 21. fxg4 {[%emt 0:00:34]} Nce5 {[%emt 0:00:03]} 22. Nd4 {[%emt 0:00:19]} Qd8 {[%emt 0:00:41]} 23. Rgf1 {[%emt 0:00:24]} Kh8 {[%emt 0:00:36]} 24. Ne4 {[%emt 0:00:14]} Bg8 {[%emt 0:00:18]} 25. Rf5 {[%emt 0:01:25]} Rxf5 {[%emt 0:01:09]} 26. gxf5 {[%emt 0:00:08]} Nf8 {[%emt 0:00:01]} 27. Ne6 {[%emt 0:02:57]} Bxe6 {[%emt 0:00:39]} 28. fxe6 {[%emt 0:00:07]} Nh7 {[%emt 0:00:01]} 29. Qe2 {[%emt 0:00:45]} Rf8 {[%emt 0:01:12]} 30. Rf1 {[%emt 0:00:22]} Rxf1+ {[%emt 0:00:07]} 31. Qxf1 {[%emt 0:00:07]} Qe7 {[%emt 0:00:29]} 32. Qf2 {[%emt 0:00:20]} g5 {[%emt 0:00:11]} 33. c5 {[%emt 0:00:06]} g4 {[%emt 0:00:33]} 34. cxd6 {[%emt 0:00:05]} cxd6 {[%emt 0:00:00]} 35. hxg4 {[%emt 0:00:26]} Nxg4 {[%emt 0:00:02]} 36. Qb6 {[%emt 0:00:36]} Qg7 {[%emt 0:00:04]} 37. Qd8+ {[%emt 0:00:05]} Nf8 {[%emt 0:00:02]} 38. Qxh4+ {[%emt 0:00:05]} Nh7 {[%emt 0:00:03]} 39. Bf3 {[%emt 0:00:24]} Qa1+ {[%emt 0:00:11]} 40. Kg2 {[%emt 0:00:02]} Ne3+ {[%emt 0:00:01]} 41. Kf2 {[%emt 0:00:03]} Nxd5 {[%emt 0:00:10]} 42. Qd8+ {[%emt 0:00:04]} Kg7 {[%emt 0:00:01]} 43. Qd7+ {[%emt 0:00:05]} Kh6 {[%emt 0:00:01]} 44. Qxd6 {[%emt 0:00:03]} Qd4+ {[%emt 0:00:02]} 45. Kg2 {[%emt 0:00:12]} Ne3+ {[%emt 0:00:12]} 46. Kf2 {[%emt 0:00:09]} Nd5+ {[%emt 0:00:17]} 47. Kg3 {[%emt 0:00:05]} Qg1+ {[%emt 0:00:01]} 48. Bg2 {[%emt 0:00:01]} Qe3+ {[%emt 0:00:05]} 49. Kh2 {[%emt 0:00:02]} Ndf6 {[%emt 0:00:05]} 50. Qg3 {[%emt 0:00:05]} Qxg3+ {[%emt 0:00:06]} 51. Kxg3 {[%emt 0:00:01]} Kg7 {[%emt 0:00:03]} 52. Nd6 {[%emt 0:00:06]} Kf8 {[%emt 0:00:09]} 53. Nxb7 {[%emt 0:00:08]} Ke7 {[%emt 0:00:03]} 54. Nc5 {[%emt 0:00:01]} a5 {[%emt 0:00:03]} 55. Kf4 {[%emt 0:00:03]} Nf8 {[%emt 0:00:02]} 56. Kf5 {[%emt 0:00:05]} Ne8 {[%emt 0:00:03]} 57. Ke5 {[%emt 0:00:04]} Ng6+ {[%emt 0:00:02]} 58. Kd4 {[%emt 0:00:03]} Nc7 {[%emt 0:00:03]} 59. Bd5 {[%emt 0:00:05]} Nf4 {[%emt 0:00:02]} 60. Bc4 {[%emt 0:00:03]} Kd6 {[%emt 0:00:02]} 61. Nb7+ {[%emt 0:00:04]} Kc6 {[%emt 0:00:05]} 62. Nxa5+ {[%emt 0:00:06]} Kb6 {[%emt 0:00:01]} 63. b4 {[%emt 0:00:05]} Nfxe6+ {[%emt 0:00:00]} 64. Bxe6 {[%emt 0:00:01]} Nxe6+ {[%emt 0:00:00]} 65. Kc4 {[%emt 0:00:01]} Nc7 {[%emt 0:00:02]} 66. a4 {[%emt 0:00:04]} Na6 {[%emt 0:00:02]} 67. Nb3 {[%emt 0:00:04]} Nb8 {[%emt 0:00:03]} 68. a5+ {[%emt 0:00:02]} Ka7 {[%emt 0:00:01]} 69. b5 {[%emt 0:00:03]} Nd7 {[%emt 0:00:01]} 70. Nc5 {[%emt 0:00:02]} Ne5+ {[%emt 0:00:02]} 71. Kd5 {[%emt 0:00:02]} Ng6 {[%emt 0:00:01]} 72. b6+ {[%emt 0:00:03]} Kb8 {[%emt 0:00:01]} 73. a6 {[%emt 0:00:08]} Ne7+ {[%emt 0:00:02]} 74. Ke6 {[%emt 0:00:03]} Nc6 {[%emt 0:00:04]} 75. Kd6 {[%emt 0:00:08]} Na5 {[%emt 0:00:08]} 76. Nd7+ {[%emt 0:00:08]} Ka8 {[%emt 0:00:03]} 77. Ne5 {[%emt 0:00:03]} Kb8 {[%emt 0:00:03]} 78. Nc6+ {[%emt 0:00:04]} 1-0

[Event "European Online Club-ch-G 2021"]
[Site "Online"]
[Date "2021.03.27"]
[Round "9.7"]
[White "Karacsonyi, Gellert"]
[Black "Kostolansky, Sebastian Lukas"]
[Result "0-1"]
[ECO "B07"]
[WhiteElo "2321"]
[BlackElo "2393"]
[Annotator "NA"]
[PlyCount "60"]
[EventDate "2021.03.27"]
[EventType "team-tourn"]
[EventCountry "NET"]
[SourceTitle "playchess.com"]
[Source "ChessBase"]
[SourceQuality "1"]
[TimeControl "900+5"]

1. e4 {[%emt 0:00:00]} d6 {[%emt 0:00:10]} 2. d4 {[%emt 0:00:03]} Nf6 {[%emt 0:00:03]} 3. Nc3 {[%emt 0:00:01]} g6 {[%emt 0:00:05]} 4. Bf4 {[%emt 0:00:12]} Bg7 {[%emt 0:00:08]} 5. Qd2 {[%emt 0:00:05]} c6 {[%emt 0:00:08]} 6. O-O-O {[%emt 0:01:16]} b5 {[%emt 0:00:40]} 7. f3 {[%emt 0:00:02]} O-O {[%emt 0:00:39]} 8. Bh6 {[%emt 0:00:24]} b4 {[%emt 0:01:06]} 9. Nce2 {[%emt 0:00:03]} Qa5 {[%emt 0:01:05]} 10. Kb1 {[%emt 0:00:04]} c5 {[%emt 0:00:11]} 11. h4 {[%emt 0:00:41]} cxd4 {[%emt 0:02:38]} 12. Bxg7 {[%emt 0:00:50]} Kxg7 {[%emt 0:00:04]} 13. Nxd4 {[%emt 0:00:02]} h5 {[%emt 0:03:19]} 14. Nh3 {[%emt 0:01:35]} Na6 {[%emt 0:01:35]} 15. Be2 {[%emt 0:00:13]} Nc5 {[%emt 0:00:06]} 16. Nf2 {[%emt 0:00:44]} Qb6 {[%emt 0:00:47]} 17. g4 {[%emt 0:00:31]} e5 {[%emt 0:00:52]} 18. Nf5+ {[%emt 0:00:20]} Bxf5 {[%emt 0:00:16]} 19. gxf5 {[%emt 0:00:01]} Na4 {[%emt 0:00:06]} 20. Bc4 {[%emt 0:02:04]} Nc3+ {[%emt 0:00:05]} 21. Ka1 {[%emt 0:00:01]} Nxd1 {[%emt 0:00:06]} 22. Nxd1 {[%emt 0:00:00]} Qd4 {[%emt 0:00:55]} 23. Qe2 {[%emt 0:02:02]} d5 {[%emt 0:00:42]} 24. Bd3 {[%emt 0:01:18]} dxe4 {[%emt 0:00:03]} 25. fxe4 {[%emt 0:00:00]} a5 {[%emt 0:00:18]} 26. Ne3 {[%emt 0:01:39]} a4 {[%emt 0:00:18]} 27. fxg6 {[%emt 0:01:30]} fxg6 {[%emt 0:00:17]} 28. Rg1 {[%emt 0:00:01]} Ng4 {[%emt 0:00:04]} 29. Rg3 {[%emt 0:00:30]} Nxe3 {[%emt 0:00:05]} 30. Qxe3 {[%emt 0:00:57]} Rf1+ {[%emt 0:00:09]} 0-1

[Event "European Online Club-ch-G 2021"]
[Site "Online"]
[Date "2021.03.27"]
[Round "9.8"]
[White "Haring, Filip"]
[Black "Ongut, Tamas Gunes"]
[Result "1/2-1/2"]
[ECO "E94"]
[WhiteElo "2376"]
[BlackElo "2314"]
[Annotator "NA"]
[PlyCount "87"]
[EventDate "2021.03.27"]
[EventType "team-tourn"]
[EventCountry "NET"]
[SourceTitle "playchess.com"]
[Source "ChessBase"]
[SourceQuality "1"]
[TimeControl "900+5"]

1. Nf3 {[%emt 0:00:00]} Nf6 {[%emt 0:00:03]} 2. c4 {[%emt 0:00:02]} g6 {[%emt 0:00:01]} 3. Nc3 {[%emt 0:00:03]} Bg7 {[%emt 0:00:01]} 4. e4 {[%emt 0:00:04]} d6 {[%emt 0:00:02]} 5. d4 {[%emt 0:00:02]} O-O {[%emt 0:00:01]} 6. Be2 {[%emt 0:00:01]} e5 {[%emt 0:00:02]} 7. O-O {[%emt 0:00:02]} exd4 {[%emt 0:00:04]} 8. Nxd4 {[%emt 0:00:02]} Re8 {[%emt 0:00:07]} 9. f3 {[%emt 0:00:04]} c6 {[%emt 0:00:02]} 10. Kh1 {[%emt 0:00:36]} d5 {[%emt 0:00:04]} 11. exd5 {[%emt 0:04:27]} cxd5 {[%emt 0:00:03]} 12. Bg5 {[%emt 0:01:24]} h6 {[%emt 0:01:05]} 13. Bh4 {[%emt 0:00:22]} dxc4 {[%emt 0:01:29]} 14. Ndb5 {[%emt 0:01:00]} g5 {[%emt 0:02:28]} 15. Bf2 {[%emt 0:02:53]} Nc6 {[%emt 0:00:37]} 16. Bxc4 {[%emt 0:00:56]} Be6 {[%emt 0:00:19]} 17. Bxe6 {[%emt 0:00:49]} Rxe6 {[%emt 0:00:04]} 18. Qxd8+ {[%emt 0:00:32]} Rxd8 {[%emt 0:00:07]} 19. Rad1 {[%emt 0:00:02]} Rxd1 {[%emt 0:00:20]} 20. Rxd1 {[%emt 0:00:03]} a6 {[%emt 0:00:02]} 21. Nd4 {[%emt 0:01:25]} Nxd4 {[%emt 0:00:04]} 22. Bxd4 {[%emt 0:00:03]} b5 {[%emt 0:00:26]} 23. a3 {[%emt 0:00:30]} Ng4 {[%emt 0:01:33]} 24. Ne4 {[%emt 0:01:21]} Bxd4 {[%emt 0:01:33]} 25. Rxd4 {[%emt 0:00:03]} f5 {[%emt 0:00:03]} 26. fxg4 {[%emt 0:00:11]} Rxe4 {[%emt 0:00:04]} 27. Rd8+ {[%emt 0:00:12]} Kf7 {[%emt 0:00:12]} 28. h3 {[%emt 0:00:05]} fxg4 {[%emt 0:00:11]} 29. hxg4 {[%emt 0:00:04]} Rxg4 {[%emt 0:00:08]} 30. Rd6 {[%emt 0:00:03]} a5 {[%emt 0:01:07]} 31. Rxh6 {[%emt 0:00:02]} Rh4+ {[%emt 0:01:05]} 32. Rxh4 {[%emt 0:00:03]} gxh4 {[%emt 0:00:02]} 33. Kh2 {[%emt 0:00:03]} Kg6 {[%emt 0:00:01]} 34. Kh3 {[%emt 0:00:03]} Kg5 {[%emt 0:00:02]} 35. g3 {[%emt 0:00:05]} hxg3 {[%emt 0:00:02]} 36. Kxg3 {[%emt 0:00:01]} Kf5 {[%emt 0:00:03]} 37. Kf3 {[%emt 0:00:01]} Ke5 {[%emt 0:00:02]} 38. Ke3 {[%emt 0:00:02]} Kd5 {[%emt 0:00:03]} 39. Kd3 {[%emt 0:00:01]} a4 {[%emt 0:00:06]} 40. Kc3 {[%emt 0:00:04]} Kc5 {[%emt 0:00:02]} 41. b3 {[%emt 0:00:06]} axb3 {[%emt 0:00:01]} 42. Kxb3 {[%emt 0:00:01]} Kc6 {[%emt 0:00:02]} 43. a4 {[%emt 0:00:03]} bxa4+ {[%emt 0:00:02]} 44. Kxa4 {[%emt 0:00:01]} 1/2-1/2